fUST/lending_fUST_20241203
["ID","MTS","AMOUNT","RATE_DAILY","PERIOD"]
[344025754,1733218239656,-196.042972,0.00030773,7]
[344025755,1733218239665,-151.0,0.00030773,7]
[344025756,1733218239675,-196.042972,0.00030773,7]
[344025757,1733218239684,-151.0,0.00030773,7]
[344025758,1733218239694,-196.042972,0.00030773,7]
[344025759,1733218239703,-256.474156,0.00030773,7]
[344025760,1733218239713,-196.042972,0.00030773,7]
[344025761,1733218239791,-196.042972,0.00030773,7]
[344025762,1733218239811,-196.042972,0.00030773,7]
[344025763,1733218239821,-196.042972,0.00030773,7]
[344025764,1733218239830,-196.042972,0.00030773,7]
[344025765,1733218239839,-196.042972,0.00030773,7]
[344025766,1733218239849,-196.042972,0.00030773,7]
[344025767,1733218239860,-196.042972,0.00030773,7]
[344025768,1733218239872,-196.042972,0.00030773,7]
[344025769,1733218239882,-165.000298,0.00030773,7]
[344025770,1733218239892,-151.0,0.00030773,7]
[344025771,1733218239901,-151.0,0.00030773,7]
[344025772,1733218239912,-151.0,0.00030773,7]
[344025773,1733218239921,-151.0,0.00030773,7]
[344025774,1733218239930,-151.0,0.00030773,7]
[344025775,1733218239941,-208.229092,0.00030773,7]
[344025776,1733218239951,-171.52230488,0.00030773,2]
[344025777,1733218239961,-166241.47563325,0.00030773,2]
[344025778,1733218239970,-664763.12477736,0.00030773,10]
[344025779,1733218239988,-144346.44279988,0.00030773,10]
[344025780,1733218240003,-13035.35562998,0.00030773,10]
[344025782,1733218240490,-611.89339567,0.00030173,30]
[344025845,1733218243684,-17.84102023,0.00030173,30]
[344025846,1733218243696,-35.7655841,0.00030173,30]
[344025847,1733218243705,-108989.08253967,0.00030773,10]
[344025848,1733218243716,-3048.35822661,0.00030773,10]
[344025849,1733218243727,-10549.32603337,0.00030773,10]
[344025850,1733218243739,-303805.5170507,0.00030773,10]
[344025875,1733218399269,172.031735,0.00013973,2]
[344025881,1733219036336,172.031735,0.00013973,2]
[344025896,1733219370141,-261.40184801,0.0002,2]
[344025943,1733219431885,-907.86898532,0.0002,2]
[344025945,1733219431895,-409.68101468,0.0002,2]
[344025996,1733219437794,-759.58981865,0.0002,2]
[344025998,1733219437805,-300.0,0.00026478,2]
[344026000,1733219437814,-2450.92010471,0.00026479,2]
[344026002,1733219437826,-11733.54490919,0.00026479,2]
[344026004,1733219437835,-177.145058,0.00026566,2]
[344026006,1733219437845,-191.596515,0.00026766,2]
[344026008,1733219437854,-500.0,0.00027673,7]
[344026010,1733219437864,-500.0,0.00027673,7]
[344026012,1733219437873,-500.0,0.00027673,7]
[344026014,1733219437882,-500.0,0.00027673,7]
[344026017,1733219437892,-500.0,0.00027673,7]
[344026020,1733219437901,-500.0,0.00027673,7]
[344026022,1733219437910,-388.49767139,0.00027673,7]
[344026024,1733219437920,-500.0,0.00027673,7]
[344026026,1733219437930,-500.0,0.00027673,7]
[344026028,1733219437939,-500.0,0.00027673,7]
[344026030,1733219437949,-500.0,0.00027673,7]
[344026032,1733219437958,-500.0,0.00027673,7]
[344026034,1733219437967,-504.93221936,0.00027673,7]
[344026036,1733219437977,-500.0,0.00027673,7]
[344026038,1733219437986,-544.78,0.00027673,7]
[344026040,1733219437996,-500.0,0.00027947,7]
[344026042,1733219438006,-500.0,0.00027947,7]
[344026044,1733219438015,-500.0,0.00027947,7]
[344026046,1733219438024,-500.0,0.00027947,7]
[344026048,1733219438034,-500.0,0.00027947,7]
[344026050,1733219438044,-500.0,0.00027947,7]
[344026052,1733219438053,-500.0,0.00027947,7]
[344026054,1733219438062,-500.0,0.00027947,7]
[344026056,1733219438071,-500.0,0.00027947,7]
[344026058,1733219438080,-500.0,0.00027947,7]
[344026060,1733219438089,-544.78,0.00027947,7]
[344026062,1733219438099,-2457.13,0.00028102,7]
[344026064,1733219438108,-500.0,0.00028102,7]
[344026066,1733219438118,-500.0,0.00028102,7]
[344026068,1733219438127,-500.0,0.00028103,7]
[344026070,1733219438137,-186.63,0.00028103,7]
[344026071,1733219438146,-500.0,0.00028103,7]
[344026072,1733219438155,-500.0,0.00028103,7]
[344026073,1733219438164,-500.0,0.00028103,7]
[344026074,1733219438174,-500.0,0.00028103,7]
[344026076,1733219438183,-500.0,0.00028103,7]
[344026077,1733219438192,-510.44343994,0.00028103,7]
[344026078,1733219438202,-201.47197097,0.00028103,7]
[344026079,1733219438213,-500.0,0.00028103,7]
[344026080,1733219438223,-1169.27083333,0.00028103,7]
[344026081,1733219438232,-500.0,0.00028103,7]
[344026082,1733219438241,-500.0,0.00028221,7]
[344026083,1733219438251,-500.0,0.00028221,7]
[344026084,1733219438262,-221.90285698,0.00028221,7]
[344026085,1733219438273,-500.0,0.00028221,7]
[344026086,1733219438282,-500.0,0.00028221,7]
[344026087,1733219438291,-500.0,0.00028221,7]
[344026088,1733219438303,-500.0,0.00028221,7]
[344026089,1733219438312,-500.0,0.00028221,7]
[344026090,1733219438321,-500.0,0.00028221,7]
[344026092,1733219438330,-500.0,0.00028221,7]
[344026093,1733219438341,-544.78,0.00028221,7]
[344026094,1733219438350,-674.33081301,0.00028221,2]
[344026095,1733219438359,-2457.13,0.00028376,7]
[344026096,1733219438370,-725.89,0.00028376,7]
[344026097,1733219438379,-500.0,0.00028376,7]
[344026098,1733219438389,-500.0,0.00028376,7]
[344026099,1733219438398,-1169.27083333,0.00028376,7]
[344026100,1733219438408,-500.0,0.00028377,7]
[344026101,1733219438418,-500.0,0.00028377,7]
[344026102,1733219438428,-500.0,0.00028377,7]
[344026103,1733219438438,-523.62743406,0.00028377,7]
[344026104,1733219438447,-500.0,0.00028377,7]
[344026105,1733219438522,-500.0,0.00028377,7]
[344026106,1733219438552,-500.0,0.00028377,7]
[344026107,1733219438562,-500.0,0.00028495,7]
[344026108,1733219438571,-500.0,0.00028495,7]
[344026109,1733219438580,-500.0,0.00028495,7]
[344026110,1733219438591,-500.0,0.00028495,7]
[344026111,1733219438600,-500.0,0.00028495,7]
[344026112,1733219438609,-500.0,0.00028495,7]
[344026113,1733219438619,-500.0,0.00028495,7]
[344026114,1733219438628,-500.0,0.00028495,7]
[344026115,1733219438637,-500.0,0.00028495,7]
[344026116,1733219438647,-1169.27083333,0.00028495,7]
[344026117,1733219438656,-544.78,0.00028495,7]
[344026118,1733219438666,-500.0,0.0002861,7]
[344026119,1733219438676,-167.073968,0.00028633,2]
[344026120,1733219438685,-420.0,0.00028641,2]
[344026121,1733219438695,-2457.13,0.0002865,7]
[344026122,1733219438705,-725.89,0.0002865,7]
[344026123,1733219438715,-500.0,0.0002865,7]
[344026124,1733219438724,-500.0,0.0002865,7]
[344026125,1733219438734,-158.21907114,0.00028651,7]
[344026126,1733219438743,-500.0,0.00028651,7]
[344026127,1733219438752,-201.79866888,0.00028651,7]
[344026128,1733219438762,-500.0,0.00028651,7]
[344026129,1733219438771,-500.0,0.00028651,7]
[344026130,1733219438780,-229.4204788,0.00028651,7]
[344026131,1733219438790,-281.02281056,0.00028769,7]
[344026132,1733219438806,-500.0,0.00028769,7]
[344026133,1733219438815,-500.0,0.00028769,7]
[344026134,1733219438825,-500.0,0.00028769,7]
[344026135,1733219438834,-500.0,0.00028769,7]
[344026136,1733219438844,-500.0,0.00028769,7]
[344026137,1733219438854,-500.0,0.00028769,7]
[344026138,1733219438864,-500.0,0.00028769,7]
[344026139,1733219438874,-500.0,0.00028769,7]
[344026140,1733219438884,-544.78,0.00028769,7]
[344026141,1733219438893,-2457.13,0.00028924,7]
[344026142,1733219438903,-725.89,0.00028924,7]
[344026143,1733219438912,-500.0,0.00028924,7]
[344026144,1733219438922,-500.0,0.00028924,7]
[344026145,1733219438932,-241.89558432,0.00028925,7]
[344026146,1733219438942,-500.0,0.00028925,7]
[344026147,1733219438952,-500.0,0.00028925,7]
[344026148,1733219438962,-500.0,0.00029043,7]
[344026149,1733219438971,-500.0,0.00029043,7]
[344026150,1733219438981,-500.0,0.00029043,7]
[344026151,1733219438991,-500.0,0.00029043,7]
[344026152,1733219439001,-500.0,0.00029043,7]
[344026153,1733219439010,-500.0,0.00029043,7]
[344026154,1733219439020,-500.0,0.00029043,7]
[344026155,1733219439029,-500.0,0.00029043,7]
[344026156,1733219439039,-544.78,0.00029043,7]
[344026157,1733219439050,-500.0,0.00029086,7]
[344026158,1733219439060,-500.0,0.00029086,7]
[344026159,1733219439069,-500.0,0.00029086,7]
[344026160,1733219439078,-916.05,0.000291,2]
[344026161,1733219439087,-2457.13,0.00029198,7]
[344026162,1733219439096,-725.89,0.00029198,7]
[344026163,1733219439106,-500.0,0.00029198,7]
[344026164,1733219439115,-500.0,0.00029198,7]
[344026165,1733219439124,-500.0,0.00029198,7]
[344026166,1733219439135,-500.0,0.00029199,7]
[344026167,1733219439144,-500.0,0.00029199,7]
[344026168,1733219439153,-500.0,0.00029317,7]
[344026169,1733219439163,-500.0,0.00029317,7]
[344026170,1733219439174,-500.0,0.00029317,7]
[344026171,1733219439184,-500.0,0.00029317,7]
[344026172,1733219439194,-500.0,0.00029317,7]
[344026173,1733219439204,-500.0,0.00029317,7]
[344026174,1733219439214,-500.0,0.00029317,7]
[344026175,1733219439224,-500.0,0.00029317,7]
[344026176,1733219439233,-544.78,0.00029317,7]
[344026177,1733219439243,-172.031735,0.00029349,2]
[344026178,1733219439253,-500.0,0.0002936,7]
[344026179,1733219439264,-500.0,0.0002936,7]
[344026180,1733219439275,-152.83,0.000294,31]
[344026181,1733219439285,-152.83,0.000294,31]
[344026182,1733219439295,-152.83,0.000294,31]
[344026183,1733219439307,-152.83,0.000294,31]
[344026184,1733219439317,-152.83,0.000294,31]
[344026185,1733219439327,-152.83,0.000294,31]
[344026187,1733219439337,-152.83,0.000294,31]
[344026188,1733219439348,-152.83,0.000294,31]
[344026189,1733219439358,-152.83,0.000294,31]
[344026190,1733219439368,-213.56,0.00029462,10]
[344026191,1733219439378,-177.97,0.00029462,10]
[344026192,1733219439387,-889.87,0.00029462,10]
[344026193,1733219439397,-2457.13,0.00029472,7]
[344026194,1733219439407,-725.89,0.00029472,7]
[344026195,1733219439416,-500.0,0.00029472,7]
[344026196,1733219439425,-500.0,0.00029472,7]
[344026197,1733219439434,-500.0,0.00029473,7]
[344026198,1733219439444,-500.0,0.00029473,7]
[344026200,1733219439453,-500.0,0.00029473,7]
[344026201,1733219439462,-500.0,0.00029473,7]
[344026202,1733219439472,-500.0,0.00029473,7]
[344026204,1733219439482,-500.0,0.00029591,7]
[344026205,1733219439491,-500.0,0.00029591,7]
[344026206,1733219439501,-500.0,0.00029591,7]
[344026207,1733219439511,-500.0,0.00029591,7]
[344026208,1733219439521,-614.31228762,0.00029591,7]
[344026209,1733219439530,-500.0,0.00029591,7]
[344026210,1733219439540,-500.0,0.00029591,7]
[344026211,1733219439552,-500.0,0.00029591,7]
[344026212,1733219439562,-544.78,0.00029591,7]
[344026213,1733219439572,-500.0,0.00029605,7]
[344026214,1733219439582,-244.22836321,0.00029634,7]
[344026215,1733219439592,-500.0,0.00029634,7]
[344026216,1733219439601,-2457.13,0.00029746,7]
[344026217,1733219439612,-725.89,0.00029746,7]
[344026219,1733219439622,-500.0,0.00029746,7]
[344026221,1733219439632,-500.0,0.00029746,7]
[344026222,1733219439642,-500.0,0.00029747,7]
[344026224,1733219439651,-500.0,0.00029747,7]
[344026226,1733219439662,-500.0,0.00029747,7]
[344026227,1733219439672,-500.0,0.00029747,7]
[344026229,1733219439682,-531.06011476,0.00029747,7]
[344026230,1733219439692,-312.7379187,0.00029841,30]
[344026231,1733219439702,-172.08707215,0.00029864,2]
[344026232,1733219439712,-500.0,0.00029865,7]
[344026233,1733219439721,-500.0,0.00029865,7]
[344026234,1733219439731,-553.14035136,0.00029865,7]
[344026235,1733219439741,-500.0,0.00029865,7]
[344026236,1733219439751,-526.34455511,0.00029865,7]
[344026237,1733219439761,-500.0,0.00029865,7]
[344026238,1733219439770,-500.0,0.00029865,7]
[344026239,1733219439781,-544.78,0.00029865,7]
[344026240,1733219439791,-1007.87650114,0.000299,2]
[344026241,1733219439803,-500.0,0.00029908,7]
[344026242,1733219439814,-513.68399063,0.00029973,5]
[344026243,1733219439824,-157.060061,0.00029973,5]
[344026244,1733219439834,-500.0,0.00029999,2]
[344026245,1733219439844,-361.86999879,0.00029999,2]
[344026246,1733219439853,-286.70936832,0.00029999,2]
[344026247,1733219439863,-277.01202112,0.00029999,2]
[344026248,1733219439873,-597.81955148,0.00029999,2]
[344026249,1733219439882,-540.3885002,0.00029999,7]
[344026250,1733219439892,-171.52230488,0.0003,2]
[344026251,1733219439902,-166241.47563325,0.0003,2]
[344026252,1733219439911,-713454.66380619,0.0003,15]
[344026253,1733219439925,-959.45336434,0.0003,15]
[344026254,1733219439984,-2148.159547,0.0003,15]
[344026255,1733219439996,-527.2024931,0.0003,15]
[344026274,1733219443070,-568.06801747,0.00028103,7]
[344026275,1733219443081,-37107.56996855,0.0003,15]
[344026276,1733219443093,-9344.52870809,0.0003,15]
[344026277,1733219443149,-1441321.49286527,0.0003,15]
[344026308,1733219820525,172.031735,0.00013973,2]
[344026316,1733220452996,172.031735,0.00013973,2]
[344026344,1733220634124,-1169.27083333,0.0002,2]
[344026345,1733220634134,-300.0,0.00027668,2]
[344026346,1733220634145,-300.0,0.00027668,2]
[344026347,1733220634155,-211.37916667,0.00027668,2]
[344026357,1733220638045,-16829.62083333,0.00027668,2]
[344026358,1733220638055,-2347.03,0.00027669,7]
[344026359,1733220638064,-500.0,0.00027669,7]
[344026360,1733220638074,-500.0,0.00027669,7]
[344026361,1733220638085,-172.81049518,0.00027669,7]
[344026362,1733220638095,-500.0,0.00027669,7]
[344026363,1733220638104,-500.0,0.00027669,7]
[344026364,1733220638114,-500.0,0.00027669,7]
[344026365,1733220638123,-482.09874357,0.0002767,7]
[344026366,1733220638136,-17.90125643,0.0002767,7]
[344026367,1733220638147,-714.87,0.0002767,7]
[344026368,1733220638165,-500.0,0.0002767,7]
[344026369,1733220638175,-500.0,0.0002767,7]
[344026371,1733220638186,-510.74315508,0.0002767,7]
[344026372,1733220638195,-500.0,0.0002767,7]
[344026374,1733220638205,-500.0,0.0002767,7]
[344026375,1733220638216,-500.0,0.0002767,7]
[344026376,1733220638226,-500.0,0.0002767,7]
[344026377,1733220638235,-500.0,0.0002767,7]
[344026378,1733220638244,-500.0,0.0002767,7]
[344026379,1733220638254,-500.0,0.0002767,7]
[344026380,1733220638263,-500.0,0.0002767,7]
[344026381,1733220638275,-500.0,0.0002767,7]
[344026382,1733220638285,-500.0,0.0002767,7]
[344026383,1733220638295,-500.0,0.0002767,7]
[344026384,1733220638304,-500.0,0.0002767,7]
[344026385,1733220638314,-500.0,0.0002767,7]
[344026386,1733220638323,-500.0,0.0002767,7]
[344026387,1733220638333,-500.0,0.0002767,7]
[344026388,1733220638343,-500.0,0.0002767,7]
[344026389,1733220638353,-640.76,0.00027671,7]
[344026390,1733220638362,-500.0,0.00027672,7]
[344026391,1733220638371,-500.0,0.00027672,7]
[344026392,1733220638380,-500.0,0.00027673,7]
[344026393,1733220638389,-500.0,0.00027673,7]
[344026394,1733220638398,-500.0,0.00027673,7]
[344026395,1733220638408,-531.06011476,0.00027673,7]
[344026396,1733220638418,-500.0,0.00027673,7]
[344026397,1733220638427,-500.0,0.00027673,7]
[344026398,1733220638437,-411.66716536,0.00027673,7]
[344026399,1733220638447,-500.0,0.00027673,7]
[344026400,1733220638457,-730.49590491,0.00027844,2]
[344026401,1733220638466,-2347.03,0.00027943,7]
[344026402,1733220638476,-500.0,0.00027943,7]
[344026403,1733220638485,-500.0,0.00027943,7]
[344026404,1733220638495,-500.0,0.00027943,7]
[344026405,1733220638506,-714.87,0.00027944,7]
[344026406,1733220638515,-500.0,0.00027944,7]
[344026407,1733220638530,-500.0,0.00027944,7]
[344026408,1733220638541,-500.0,0.00027944,7]
[344026409,1733220638552,-500.0,0.00027944,7]
[344026410,1733220638562,-500.0,0.00027944,7]
[344026411,1733220638572,-553.14035136,0.00027944,7]
[344026412,1733220638582,-500.0,0.00027944,7]
[344026413,1733220638592,-500.0,0.00027944,7]
[344026414,1733220638605,-500.0,0.00027944,7]
[344026415,1733220638618,-500.0,0.00027944,7]
[344026416,1733220638628,-500.0,0.00027944,7]
[344026417,1733220638639,-500.0,0.00027944,7]
[344026418,1733220638649,-194.34667412,0.00027944,7]
[344026419,1733220638659,-500.0,0.00027944,7]
[344026420,1733220638669,-244.78114288,0.00027944,7]
[344026421,1733220638680,-500.0,0.00027944,7]
[344026422,1733220638689,-640.76,0.00027945,7]
[344026423,1733220638699,-500.0,0.00027946,7]
[344026424,1733220638708,-500.0,0.00027946,7]
[344026425,1733220638718,-500.0,0.00027946,7]
[344026426,1733220638727,-529.99364696,0.00027946,7]
[344026427,1733220638736,-500.0,0.00027946,7]
[344026428,1733220638746,-326.4904191,0.00027946,7]
[344026429,1733220638756,-500.0,0.00027946,7]
[344026430,1733220638766,-500.0,0.00027946,7]
[344026431,1733220638778,-500.0,0.00027946,7]
[344026432,1733220638788,-500.0,0.00027946,7]
[344026433,1733220638797,-500.0,0.00027946,7]
[344026434,1733220638806,-500.0,0.00027947,7]
[344026435,1733220638816,-500.0,0.00027947,7]
[344026436,1733220638825,-500.0,0.00027947,7]
[344026437,1733220638835,-500.0,0.00027947,7]
[344026438,1733220638844,-1169.27083333,0.00028103,7]
[344026439,1733220638853,-244.22836321,0.00028103,7]
[344026440,1733220638863,-500.0,0.00028103,7]
[344026441,1733220638872,-513.68399063,0.000282,5]
[344026442,1733220638882,-2347.03,0.00028217,7]
[344026443,1733220638891,-500.0,0.00028217,7]
[344026444,1733220638900,-634.69971531,0.00028217,7]
[344026445,1733220638909,-714.87,0.00028218,7]
[344026446,1733220638919,-500.0,0.00028218,7]
[344026447,1733220638928,-500.0,0.00028218,7]
[344026448,1733220638937,-500.0,0.00028218,7]
[344026449,1733220638947,-614.31228762,0.00028218,7]
[344026450,1733220638957,-500.0,0.00028218,7]
[344026451,1733220638967,-500.0,0.00028218,7]
[344026452,1733220638977,-500.0,0.00028218,7]
[344026453,1733220638986,-500.0,0.00028218,7]
[344026454,1733220638996,-640.76,0.00028219,7]
[344026455,1733220639006,-500.0,0.0002822,7]
[344026456,1733220639015,-328.05068359,0.0002822,7]
[344026457,1733220639027,-500.0,0.0002822,7]
[344026458,1733220639037,-500.0,0.0002822,7]
[344026459,1733220639047,-287.08194011,0.0002822,7]
[344026460,1733220639057,-500.0,0.0002822,7]
[344026461,1733220639067,-500.0,0.0002822,7]
[344026462,1733220639077,-500.0,0.0002822,7]
[344026463,1733220639088,-500.0,0.00028221,7]
[344026464,1733220639098,-500.0,0.00028221,7]
[344026465,1733220639108,-730.4959049,0.00028249,2]
[344026466,1733220639118,-1169.27083333,0.00028376,7]
[344026467,1733220639128,-500.0,0.00028377,7]
[344026468,1733220639138,-202.2157795,0.00028427,2]
[344026469,1733220639148,-2347.03,0.00028491,7]
[344026470,1733220639159,-500.0,0.00028491,7]
[344026471,1733220639169,-714.87,0.00028492,7]
[344026472,1733220639180,-500.0,0.00028492,7]
[344026473,1733220639191,-500.0,0.00028492,7]
[344026474,1733220639201,-500.0,0.00028492,7]
[344026475,1733220639210,-500.0,0.00028492,7]
[344026476,1733220639221,-526.34455511,0.00028492,7]
[344026477,1733220639231,-500.0,0.00028492,7]
[344026478,1733220639241,-500.0,0.00028492,7]
[344026479,1733220639251,-640.76,0.00028493,7]
[344026480,1733220639262,-500.0,0.00028493,7]
[344026481,1733220639275,-500.0,0.00028494,7]
[344026482,1733220639285,-500.0,0.00028494,7]
[344026483,1733220639295,-515.92411854,0.00028494,7]
[344026484,1733220639305,-1169.27083333,0.00028495,7]
[344026485,1733220639316,-500.0,0.00028495,7]
[344026486,1733220639326,-500.0,0.00028495,7]
[344026487,1733220639337,-824.45,0.000285,2]
[344026488,1733220639347,-329.20595523,0.00028529,2]
[344026489,1733220639357,-500.0,0.00028529,5]
[344026490,1733220639367,-157.060061,0.0002855,5]
[344026491,1733220639377,-167.073968,0.00028633,2]
[344026492,1733220639387,-179.418145,0.00028633,2]
[344026493,1733220639397,-500.0,0.00028651,7]
[344026494,1733220639406,-730.4959049,0.00028655,2]
[344026495,1733220639417,-453.91,0.00028756,3]
[344026496,1733220639426,-177.97,0.00028759,10]
[344026497,1733220639436,-2347.03,0.00028765,7]
[344026498,1733220639446,-500.0,0.00028765,7]
[344026499,1733220639455,-714.87,0.00028766,7]
[344026500,1733220639466,-500.0,0.00028766,7]
[344026501,1733220639476,-500.0,0.00028766,7]
[344026502,1733220639486,-500.0,0.00028766,7]
[344026504,1733220639496,-500.0,0.00028766,7]
[344026505,1733220639505,-500.0,0.00028766,7]
[344026506,1733220639515,-500.0,0.00028766,7]
[344026507,1733220639530,-640.76,0.00028767,7]
[344026508,1733220639540,-500.0,0.00028768,7]
[344026509,1733220639550,-500.0,0.00028768,7]
[344026510,1733220639561,-500.0,0.00028769,7]
[344026511,1733220639571,-500.0,0.00028769,7]
[344026512,1733220639582,-500.0,0.00028925,7]
[344026513,1733220639592,-2347.03,0.00029039,7]
[344026514,1733220639607,-500.0,0.00029039,7]
[344026515,1733220639616,-714.87,0.0002904,7]
[344026516,1733220639626,-500.0,0.0002904,7]
[344026517,1733220639635,-500.0,0.0002904,7]
[344026518,1733220639646,-435.01330625,0.0002904,7]
[344026519,1733220639655,-500.0,0.0002904,7]
[344026520,1733220639665,-500.0,0.0002904,7]
[344026521,1733220639678,-500.0,0.0002904,7]
[344026522,1733220639688,-640.76,0.00029041,7]
[344026523,1733220639698,-500.0,0.00029042,7]
[344026524,1733220639707,-500.0,0.00029042,7]
[344026526,1733220639717,-540.3885002,0.00029042,7]
[344026527,1733220639727,-500.0,0.00029043,7]
[344026528,1733220639736,-500.0,0.00029043,7]
[344026529,1733220639746,-730.4959049,0.0002906,2]
[344026530,1733220639755,-500.0,0.00029199,7]
[344026531,1733220639766,-151.29,0.00029303,3]
[344026533,1733220639779,-2347.03,0.00029313,7]
[344026534,1733220639788,-500.0,0.00029313,7]
[344026535,1733220639798,-714.87,0.00029314,7]
[344026536,1733220639808,-500.0,0.00029314,7]
[344026537,1733220639818,-500.0,0.00029314,7]
[344026538,1733220639829,-500.0,0.00029314,7]
[344026540,1733220639838,-258.83273839,0.00029314,7]
[344026541,1733220639848,-500.0,0.00029314,7]
[344026542,1733220639857,-640.76,0.00029315,7]
[344026543,1733220639869,-500.0,0.00029316,7]
[344026544,1733220639879,-500.0,0.00029316,7]
[344026545,1733220639889,-500.0,0.00029317,7]
[344026546,1733220639899,-500.0,0.00029317,7]
[344026547,1733220639909,-152.84,0.000294,31]
[344026548,1733220639918,-152.84,0.000294,31]
[344026549,1733220639928,-152.84,0.000294,31]
[344026550,1733220639937,-152.84,0.000294,31]
[344026551,1733220639947,-152.84,0.000294,31]
[344026552,1733220640036,-152.84,0.000294,31]
[344026553,1733220640046,-152.84,0.000294,31]
[344026554,1733220640057,-152.84,0.000294,31]
[344026555,1733220640066,-730.4959049,0.00029465,2]
[344026556,1733220640076,-500.0,0.00029473,7]
[344026557,1733220640086,-2347.03,0.00029587,7]
[344026558,1733220640095,-500.0,0.00029587,7]
[344026559,1733220640105,-714.87,0.00029588,7]
[344026560,1733220640119,-500.0,0.00029588,7]
[344026561,1733220640129,-500.0,0.00029588,7]
[344026562,1733220640139,-500.0,0.00029588,7]
[344026563,1733220640148,-500.0,0.00029588,7]
[344026564,1733220640158,-640.76,0.00029589,7]
[344026565,1733220640167,-500.0,0.0002959,7]
[344026566,1733220640178,-500.0,0.0002959,7]
[344026567,1733220640188,-500.0,0.00029591,7]
[344026568,1733220640198,-500.0,0.00029591,7]
[344026569,1733220640207,-500.0,0.00029747,7]
[344026570,1733220640217,-61215.59988686,0.000298,7]
[344026571,1733220640227,-2347.03,0.00029861,7]
[344026572,1733220640236,-500.0,0.00029861,7]
[344026573,1733220640249,-714.87,0.00029862,7]
[344026574,1733220640258,-500.0,0.00029862,7]
[344026575,1733220640268,-500.0,0.00029862,7]
[344026576,1733220640280,-271.5538991,0.00029862,7]
[344026577,1733220640290,-614.59074957,0.00029862,7]
[344026578,1733220640299,-640.76,0.00029863,7]
[344026579,1733220640309,-500.0,0.00029864,7]
[344026580,1733220640318,-500.0,0.00029864,7]
[344026581,1733220640327,-500.0,0.00029865,7]
[344026582,1733220640336,-500.0,0.00029865,7]
[344026583,1733220640346,-420.0,0.00029892,2]
[344026584,1733220640355,-6666.0,0.000299,2]
[344026585,1733220640364,-207.27033599,0.000299,10]
[344026586,1733220640374,-1007.87650114,0.000299,2]
[344026587,1733220640383,-179.34586544,0.00029999,2]
[344026588,1733220640393,-171.52230488,0.0003,2]
[344026589,1733220640402,-166241.47563325,0.0003,2]
[344026590,1733220640412,-2729838.55924746,0.0003,15]
[344026591,1733220640422,-995.48409471,0.0003,10]
[344026592,1733220640432,-151.0,0.0003,20]
[344026593,1733220640442,-151.0,0.0003,20]
[344026594,1733220640452,-151.0,0.0003,18]
[344026595,1733220640463,-150.0,0.0003,120]
[344026596,1733220640473,-340.0,0.0003,2]
[344026597,1733220640483,-151.0,0.0003,13]
[344026598,1733220640493,-191.0,0.0003,2]
[344026599,1733220640502,-500.0,0.00030021,7]
[344026600,1733220640512,-2347.03,0.00030135,7]
[344026601,1733220640523,-500.0,0.00030135,7]